Cogmind - Beta 15 @@@ ROGUE MODE // 2025.05.25 @ 12:45:35 Player: Elias Result: Destroyed self via exploding Nuclear Reactor Performance ------------- Evolutions (1) 500 Regions Visited (2) 400 Robots Destroyed (35) 175 Value Destroyed (858) 858 Prototype IDs (4) 80 Alien Tech Used (0) 0 Bonus (0) 0 TOTAL SCORE: 2013 Bonus ------- None Cogmind --------- Core Integrity 0/400 Matter 169/300 Energy 265/265 System Corruption 1% Temperature Cool (0) Movement Core (300) Ox5 Location -9/Materials Parts ------- > --- POWER (1) -------- Improved Ion Engine > --- PROPULSION (3) --- (None) > --- UTILITY (3) ------ Heat Sink Medium Storage Unit Signal Interpreter > --- WEAPON (2) ------- (None) > --- INVENTORY (10) --- Aluminum Leg Aluminum Leg Reaction Control System Particle Gun Peak State ------------ > --- POWER ------------ Light Ion Engine > --- PROPULSION ------- Airjet Airjet Airjet > --- UTILITY ---------- Medium Storage Unit Sensor Array Signal Interpreter > --- WEAPON ----------- Improved Medium Laser Improved Assault Rifle > --- INVENTORY -------- Light Ion Engine Aluminum Leg Aluminum Leg Airjet Heat Sink Reaction Control System Light Armor Plating Beam Rifle Light Assault Rifle Grenade Launcher [Rating: 20] Favorites ----------- Power Light Ion Engine Engine Light Ion Engine Propulsion Aluminum Leg Leg Aluminum Leg Hover Unit Airjet Utility Medium Storage Unit Device Sensor Array Storage Medium Storage Unit Processor Signal Interpreter Protection Light Armor Plating Weapon Light Assault Rifle Energy Gun Improved Medium Laser Ballistic Gun Light Assault Rifle Launcher Grenade Launcher Special Weapon Plasma Cutter Build | -11 -10 -9 ------- Run | Yrd Mat Mat Slots Evolved 2 | . . 2 Power . | . . . Propulsion 1 | . . 1 Utility 1 | . . 1 Weapon . | . . . Parts Attached 33 | 7 4 22 Power 4 | 1 . 3 Engine 4 | 1 . 3 Core . | . . . Reactor . | . . . Propulsion 12 | 2 . 10 Treads . | . . . Leg 4 | 2 . 2 Wheel . | . . . Hover 8 | . . 8 Flight . | . . . Utility 7 | 2 2 3 Device 3 | 1 1 1 Storage 2 | 1 1 . Processor 1 | . . 1 Hackware . | . . . Protection 1 | . . 1 Artifact . | . . . Weapon 10 | 2 2 6 Energy Gun 4 | . . 4 Energy Cannon . | . . . Ballistic Gun 4 | 2 1 1 Ballistic Cannon . | . . . Launcher 1 | . 1 . Special Weapon 1 | . . 1 Impact Weapon . | . . . Slashing Weapon . | . . . Piercing Weapon . | . . . Special Melee Weapon . | . . . Unidentified Prototypes 2 | . . 2 Parts Lost 18 | . . 18 Power 3 | . . 3 Propulsion 9 | . . 9 Utility 2 | . . 2 Weapon 4 | . . 4 Highest Loss Streak 11 | . . 11 To Critical Strikes . | . . . Average Backups 7 | 3 8 8 Power 1 | . 2 1 Propulsion 2 | 1 2 2 Utility 1 | . 1 2 Weapon 1 | 1 1 2 Tool/Special . | . . . Unused Backups 7 | 1 . 6 Power 1 | . . 1 Propulsion 3 | . . 3 Utility 2 | 1 . 1 Weapon 1 | . . 1 Tool/Special . | . . . Average Slot Usage (%) 93 | . 100 91 Engine 11 | . 14 10 Leg 19 | . 28 17 Hover 8 | . . 12 Device 10 | . 14 8 Storage 11 | . 14 11 Processor 7 | . . 10 Protection 1 | . . 1 Energy Gun 4 | . . 6 Ballistic Gun 13 | . 27 8 Launcher 1 | . . 2 Special Weapon 1 | . . 1 Peak Build Rating 20 | 9 9 20 Average Rating 10 | 5 8 12 On Entrance 5 | . 9 8 Naked Turns . | . . . Heaviest Build 22 | 11 18 22 Greatest Support 30 | 20 20 30 Greatest Overweight (x) 4 | . . 4 Average Overweight (x) . | . . . Largest Inventory Capacity 10 | 8 10 10 Average Capacity 9 | 7 9 10 Most Carried 10 | 5 10 10 Average Carried 7 | 3 8 8 Final Capacity 10 | 8 10 10 Final Carried 10 | 5 10 4 Class Distribution -------------------- 100% | Mutant Dominant Class ---------------- Mutant | -10/Materials Mutant | -9/Materials Resources | -11 -10 -9 ----------- Run | Yrd Mat Mat Matter Collected 660 | 306 55 299 Remotely . | . . . Salvage Created 1197 | 154 89 954 Parts 69 | 7 3 59 Haulers Intercepted 1 | . . 1 Recyclers Shooed 1 | 1 . . Parts Field Recycled . | . . . Retrieved Matter . | . . . Parts Self-Destructed . | . . . Prevented . | . . . Kills | -11 -10 -9 ------- Run | Yrd Mat Mat Combat Hostiles Destroyed 19 | . . 19 Guns 11 | . . 11 Cannons 1 | . . 1 AOE 7 | . . 7 Classes Destroyed 9 | 3 . 6 Worker 4 | 1 . 3 Builder 3 | . . 3 Tunneler 2 | 2 . . Hauler 1 | . . 1 Recycler 3 | 1 1 1 Watcher 3 | . . 3 Grunt 13 | . . 13 Duelist 1 | . . 1 Sentry 5 | . . 5 Best Kill Streak 6 | 2 1 6 Combat Bots Only 4 | . . 4 Max Kills in Single Turn 4 | 1 1 4 Gunslinging . | . . . Exploded 2 | . . 2 Melee . | . . . Uniques/NPCs Destroyed . | . . . Combat | -11 -10 -9 -------- Run | Yrd Mat Mat Hostile Shots Fired 148 | . 6 142 Missed 41 | . 1 40 Hits 107 | . 5 102 Melee 8 | . . 8 Projectile 99 | . 5 94 Critical Strikes 5 | . . 5 Damage Taken 1779 | . 87 1692 Core 445 | . 34 411 Absorbed by Shields . | . . . Core Remaining (%) 93 | 100 86 . Volleys Fired 75 | 18 3 54 Largest 2 | 2 2 2 Hottest 86 | 40 50 86 Shots Fired 136 | 36 6 94 Gun 110 | 36 5 69 Cannon . | . . . Launcher 14 | . 1 13 Special 12 | . . 12 Kinetic 80 | 36 5 39 Thermal 42 | . . 42 Explosive 14 | . 1 13 Electromagnetic . | . . . Robot Hit Streak 17 | 4 . 17 Robot Miss Streak 4 | 4 . 2 Penetration Max . | . . . Secondary Targets . | . . . Shots Hit Robots 83 | 18 . 65 Core Hits 51 | 9 1 41 Critical Kills . | . . . Critical Parts Destroyed . | . . . Critical Strikes 3 | . . 3 Burn 2 | . . 2 Sever 1 | . . 1 Melee Attacks . | . . . Impact . | . . . Slashing . | . . . Piercing . | . . . Sneak Attacks . | . . . Combat Hostiles . | . . . Follow-up Attacks . | . . . Damage Inflicted 1952 | 143 32 1777 Guns 878 | 143 . 735 Cannons . | . . . Explosions 1006 | . 32 974 Melee . | . . . Ramming . | . . . Kinetic 477 | 143 . 334 Thermal 469 | . . 469 Explosive 1006 | . 32 974 Electromagnetic . | . . . Impact . | . . . Slashing . | . . . Piercing . | . . . Highest Corruption 1 | . . 1 Average Corruption 1 | . . 1 Corruption Purged . | . . . Corruption Blocked . | . . . Effects 1 | . . 1 Message Errors 1 | . . 1 Overload Shots . | . . . Overflow Damage 197 | . . 197 Projectiles . | . . . Explosions 197 | . . 197 Melee . | . . . Knockbacks . | . . . Impact . | . . . Kinetic . | . . . Secondary . | . . . Self-Inflicted Damage 221 | . . 221 Shots 5 | . . 5 Rammed . | . . . Targets Rammed . | . . . Kicked . | . . . Crushed . | . . . Highest Temperature 235 | . 10 235 Average Temperature 69 | . 7 70 Received Heat Transfer 582 | . 42 540 Siege Activations . | . . . Martial Activations . | . . . Shielding Activations . | . . . Robots Disrupted . | . . . Combat Hostiles . | . . . Robots Corrupted . | . . . Combat Hostiles . | . . . Parts Fried . | . . . Impact Corruptions . | . . . Robots Melted . | . . . Combat Hostiles . | . . . Parts Melted 1 | . . 1 Heat Transferred 1295 | . . 1295 Parts Sabotaged . | . . . Parts Stolen . | . . . Parts Stripped . | . . . Power Chain Reactions . | . . . Alert | -11 -10 -9 ------- Run | Yrd Mat Mat Maximum Alert Level 1 | . . 1 Low Security (%) 99 | 100 100 99 Level 1 . | . . . Level 2 . | . . . Level 3 . | . . . Level 4 . | . . . Level 5 . | . . . High Security . | . . . Max Security . | . . . Peak Influence 256 | 10 27 256 Initial . | . . . Average 54 | . 2 82 Influence Increases 797 | 20 32 745 Destroy 0b10 Robot/C 380 | . . 380 Destroy 0b10 Robot/NC 80 | 20 5 55 Destroy Leader 108 | . . 108 Successful Hack 28 | . 5 23 Disable Machine 45 | . 15 30 Destroy Structure 81 | . 7 74 Lose Combat Pursuer 75 | . . 75 Influence Decreases 544 | 20 32 492 Time Decay 364 | 20 32 312 Lost Part 180 | . . 180 Squads Dispatched 4 | . . 4 Investigation 1 | . . 1 Extermination . | . . . Reinforcement 3 | . . 3 Assault . | . . . Garrison . | . . . Intercept . | . . . Searches Triggered . | . . . Construction Impeded . | . . . Haulers Reinforced . | . . . Active Scanning Responses . | . . . Cargo Convoy Interrupts . | . . . Stealth | -11 -10 -9 --------- Run | Yrd Mat Mat Distress Signals 2 | . . 2 Communications Jammed . | . . . Distress Signals . | . . . Times Spotted 31 | . 2 29 Peak Tracking Total 4 | . 2 4 Tactical Retreats 3 | . . 3 Traps | -11 -10 -9 ------- Run | Yrd Mat Mat Traps Triggered 3 | . 1 2 Indirectly . | . . . Trap Hack Attempts . | . . . Triggered . | . . . Disarmed . | . . . Reprogrammed . | . . . Reused . | . . . Traps Extracted . | . . . Installed . | . . . Triggered . | . . . Machines | -11 -10 -9 ---------- Run | Yrd Mat Mat Machines Disabled 3 | . 1 2 Max in Single Turn 1 | . 1 1 Machines Repaired . | . . . Machines Dismantled . | . . . Machines Sabotaged . | . . . Overloaded Fab Kills . | . . . Hacking | -11 -10 -9 --------- Run | Yrd Mat Mat Machines Accessed 6 | . 3 3 Terminals 5 | . 2 3 Fabricators . | . . . Repair Stations . | . . . Recycling Units 1 | . 1 . Scanalyzers . | . . . Garrison Access . | . . . Total Hacks 15 | . 7 8 Successful 8 | . 3 5 Failed 7 | . 4 3 Catastrophic 1 | . . 1 Database Lockouts . | . . . Manual . | . . . Terminals 13 | . 5 8 Fabricators . | . . . Repair Stations . | . . . Recycling Units 2 | . 2 . Scanalyzers . | . . . Garrison Access . | . . . Terminal Hacks 6 | . 1 5 Prototype ID Bank 1 | . . 1 Emergency Access Points 1 | . . 1 Recall Investigation 1 | . . 1 Registered Components 1 | . . 1 Zone Layout 2 | . 1 1 Fabricator Hacks . | . . . Repair Station Hacks . | . . . Recycling Unit Hacks 2 | . 2 . Process 1 | . 1 . Retrieve Components 1 | . 1 . Scanalyzer . | . . . Garrison Access Hacks . | . . . Unauthorized Hacks . | . . . Terminals . | . . . Fabricators . | . . . Repair Stations . | . . . Recycling Units . | . . . Scanalyzers . | . . . Garrison Access . | . . . Data Cores Recovered . | . . . Used . | . . . Hacking Detections 3 | . 2 1 Full Trace Events . | . . . Feedback Events . | . . . Feedback Blocked . | . . . Robot Schematics Acquired . | . . . Robots Built . | . . . Authchips . | . . . Time . | . . . Total Robot Build Rating . | . . . Part Schematics Acquired . | . . . Parts Built . | . . . Authchips . | . . . Time . | . . . Total Part Build Rating . | . . . Parts Repaired . | . . . Time . | . . . Parts Recycled . | . . . Recycled Matter . | . . . Retrieved Matter . | . . . Retrieved Components 2 | . 2 . Parts Scanalyzed . | . . . Part Schematics Acquired . | . . . Parts Damaged . | . . . Bothacking | -11 -10 -9 ------------ Run | Yrd Mat Mat Used RIF Installer . | . . . Robots Hacked . | . . . Non-combat . | . . . Combat . | . . . Robot Hacks Applied . | . . . Relay Couplers Released . | . . . Fabnet Peak Effective % . | . . . Robots Rewired . | . . . Allies Hacked . | . . . Hacks Repelled . | . . . Allies | -11 -10 -9 -------- Run | Yrd Mat Mat Total Allies . | . . . Largest Group . | . . . Highest-Rated Group . | . . . Highest-Rated Ally . | . . . Total Orders . | . . . Ally Attacks . | . . . Total Damage . | . . . Kills . | . . . Allies Corrupted . | . . . Allies Melted . | . . . Intel | -11 -10 -9 ------- Run | Yrd Mat Mat Active Infowar (turns) 944 | 15 314 615 Sensors 816 | . 201 615 Terrain 128 | 15 113 . Robot Analysis Total . | . . . Derelict Logs Recovered . | . . . Drone Launches . | . . . Drone Recoveries . | . . . Exploration | -11 -10 -9 ------------- Run | Yrd Mat Mat Turns Passed 1292 | 130 314 848 Spaces Moved 870 | 66 245 559 Core 23 | 22 . 1 Treads . | . . . Legs 564 | 44 245 275 Wheels . | . . . Hover 283 | . . 283 Flight . | . . . Fastest Speed 50 | 50 120 52 Average Speed 105 | 96 120 100 Slowest Speed 250 | 120 120 250 Overloaded Moves . | . . . Propulsion Burnouts . | . . . Robots Hopped . | . . . Potential Cave-ins . | . . . Cave-ins Triggered . | . . . Exploration Rate (%) 31 | 5 40 49 Regions Visited 2 Branch Regions . Pre-discovered Areas . | . . . Known Exits Taken . | . . . Unknown Exits Taken 2 | 1 1 . Scrap Searched . | . . . Spaces Dug . | . . . Terrain Destroyed 91 | . 7 84 Melee . | . . . Projectile . | . . . AOE 91 | . 7 84 Terrain Rammed . | . . . Walls Destroyed . | . . . Machines Disabled . | . . . Actions | -11 -10 -9 --------- Run | Yrd Mat Mat Total 1109 | 104 258 747 Wait 64 | . . 64 Move 868 | 65 244 559 Hop . | . . . Pick Up 43 | 13 6 24 Fast Attach . | . . . Attach 24 | 7 . 17 Detach 1 | . . 1 Swap 18 | . 4 14 Drop 16 | 1 1 14 Fire 75 | 18 3 54 Melee . | . . . Ram . | . . . Kick . | . . . Crush . | . . . Escape Stasis . | . . . Rewire . | . . . Trap . | . . . Miscellaneous . | . . . Route ------- -11/Scrapyard -10/Materials -9/Materials (discovered 2 exits: [*Min x2]) History --------- Turn | Location | Event 12 | -11/Scrapyard | Discovered new exit (range 15) 131 | -11/Scrapyard | Entered Materials 275 | -10/Materials | Discovered new exit (range 16) 303 | -10/Materials | Build established: Mutant 445 | -10/Materials | Entered another Materials area 445 | -9/Materials | Evolved 2 slots: Propulsion x1, Utility x1 502 | -9/Materials | Discovered new exit (range 15) 1096 | -9/Materials | Core integrity fell below 50% 1107 | -9/Materials | Core integrity fell below 20% 1137 | -9/Materials | Lost 11 parts (2p6n1u2w) 1181 | -9/Materials | Discovered new exit (range 11) 1293 | -9/Materials | Destroyed self via exploding Nuclear Reactor Last Messages --------------- 01285_ Nuclear Reactor explodes. 01285_ G-47 Trooper destroyed. 01285_ Destroyed Welding Torch. 01285_ Destroyed Lgt. Ion Engine. 01285_ U-05 Engineer destroyed. 01285_ K-01 Serf destroyed. 01285_ Sml. Laser destroyed. 01285_ Destroyed Sml. Laser. 01285_ Grenade Launcher destroyed. 01285_ Destroyed Grenade Launcher. 01285_ Imp. Hover Unit destroyed. 01285_ Destroyed Imp. Hover Unit. 01290_ U-05 Engineer builds a Wall. 01292_ R-06 Scavenger collects Lgt. Ion Engine. 01292_ Acquired Particle Gun. 01293_ Nuclear Reactor explodes. 01293_ Destroyed Lgt. Ion Engine. 01293_ W-16 Scout destroyed. 01293_ Airjet destroyed. 01293_ Destroyed Airjet. Map ----- +----------------------------------------------------+ | # #????????# + """ #?????????????????? | | # # "|"????# # """ #?????????????????? | | # !! # ## # #?????????????????? | | # !! ##+#####?????????????????? | | # < ####??????????????????? | | # #??????????????????? | | ####+####### ##+####### #??????????????????? | | ????????????#######?????????# #??????|???????????? | | ????????????????????????????# #??????????????????? | | ????????????????????????????# #??????????????????? | | ????????????????????????????# #??????????????????? | | ???????????????????????????##+####???????????????? | | ???????????????????????????# #???????????????? | | ??????????????###########??# #???????????????? | | ??????????????# #??# #???????????????? | | ??????????????# #??#"S #???????????????? | | ??????????????# #??#""" ##??????????????? | | ??????????????# #?## "" #??????????????? | | ??????????????## #+# ### ##??????????????? | | ???????????????# # #### ##########??????? | | ???????????????# # # %! k ??? | | ???????????????# # #### ??? | | ???????????????#### r ??? | | ?????????????########### % #######+###???? | | ??????????# = #?????????????? | | #####?????# ! @ * #?????????????? | | ?????# = #?????????????? | | ?????# = #?????????????? | | ?????? # #?????????????? | | ?????? # #?????????????? | | ???????##########+## ????????????? | | ??????????????????? #??????????? | | ##+##??????????????????? +??????????? | | ???????????????????????? ##T#######???????????? | | ????????????????????????#####?##?????????????????? | | ?????????????????????????????????????????????????? | | ?????????????????????????????????????????????????? | | ?????????????????????????????????????????????????? | | ?????????????????????????????????????????????????? | | ?????????????????????????????????????????????????? | | ?????????????????????????????????????????????????? | | ?????????????????????????????????????????????????? | | ?????????????????????????????????????????????????? | | ?????????????????????????????????????????????????? | | ?????????????????????????????????????????????????? | | ?????????????????????????????????????????????????? | | ?????????????????????????????????????????????????? | | ?????????????????????????????????????????????????? | | ?????????????????????????????????????????????????? | | ?????????????????????????????????????????????????? | +----------------------------------------------------+ Best States ------------- Heat Dissipation 38 Energy Generation 12 Energy Capacity 265 Matter Stores 300 Matter Capacity 300 Sight Range 16 Robot Scan Range 14 Terrain Scan Range 16 Terrain Scan Density 10 Armor Coverage 150 Evasion (%) 55 Item Schematics ----------------- None Robot Schematics ------------------ None Fabricated ------------ Nothing Repaired ---------- Nothing Alien Tech Used ----------------- None Achievements -------------- None Challenges ------------ None Game ------ Seed MobileSapperBarrier Manual? 0 Play Time 00:24:50 Cumulative 7.7 hours Start 2025.05.25 @ 12:21:35 End 2025.05.25 @ 12:45:35 Sessions 1 Manual Loads 0 Difficulty Rogue Special Mode None Game No. 10 Rogue 10 Adventurer 0 Explorer 0 Win Type - Total 0 Types 0/0/0/0/0/0/0/0/0/0 Lore% 10 Gallery% 13 Achievement% 16 Wizard Run 0 Options --------- Layout 0 ASCII 0 Keyboard 0 Movement Mouse Keybinds 0 Fullscreen 1 Font 18/SmallcapsGlow Map View 76x50 Zoom Use 0% Tactical HUD 1 Map Filters NONE Filters NONE Steam 1 RUN: aa3323ae-5506-4e08-adea-ed8f3019a3d4